Cogmind - Beta 15 @@@ ROGUE MODE // 2025.06.21 @ 10:45:12 Player: roc Result: Self-destructed Performance ------------- Evolutions (4) 2000 Regions Visited (11) 2200 Robots Destroyed (204) 1020 Value Destroyed (5740) 5740 Prototype IDs (24) 480 Alien Tech Used (0) 0 Bonus (1543) 1543 TOTAL SCORE: 12983 Bonus ------- High Alert Combat Kills 711 Follower Combat Kills 32 Registered with UFD 300 Met Optimus in HQ 500 Cogmind --------- Core Integrity 171/850 Matter 260/300 Energy 130/310 System Corruption 5% Temperature Cool (9) Movement Rolling (140) Ox3 Location -6/Factory Parts ------- > --- POWER (1) -------- Heavy Deuterium Engine > --- PROPULSION (5) --- Light Treads (fused) Improved Medium Treads Compact Wheel Armored Wheel > --- UTILITY (7) ------ Coolant Injector Huge Storage Unit Advanced Signal Interpreter Advanced Targeting Computer Target Analyzer Improved Light Armor Plating Improved Light Armor Plating > --- WEAPON (2) ------- Heavy Plasma Cannon > --- INVENTORY (25) --- Light Treads Light Treads Cooled Cesium-ion Thruster Cooled Cesium-ion Thruster Cooled Cesium-ion Thruster Improved Heat Sink Coolant Injector Matter Compressor (250) Gravity Neutralizer Structural Scanner Advanced Sensor Array Improved Terrain Scanner Core Analyzer Transmission Jammer Jamming Amplifier EM Shield Hacking Suite Trap Extractor (1/4 Proton Bomb) Shock Rifle Shock Rifle Phase Cannon Hypervelocity Gauss Rifle Improved Heavy Machine Gun Improved Heavy Machine Gun Heavy Pick Peak State ------------ > --- POWER ------------ Light Deuterium Engine > --- PROPULSION ------- Improved VTOL Module Improved VTOL Module Improved VTOL Module Cooled Cesium-ion Thruster Cooled Cesium-ion Thruster > --- UTILITY ---------- Medium Storage Unit Gravity Neutralizer Advanced Sensor Array Advanced Signal Interpreter Improved Propulsion Shielding Layered Light Armor Plating Improved Hacking Suite > --- WEAPON ----------- Improved Datajack Heavy Pick > --- INVENTORY -------- Improved VTOL Module Matter Compressor Advanced Targeting Computer Stasis Canceller Transmission Jammer Improved Heavy Armor Plating Authchip [Propulsion] Trap Extractor Long-range Missile Launcher [Rating: 68] Favorites ----------- Power Cooled Ion Engine Engine Cooled Ion Engine Propulsion Light Treads Treads Light Treads Wheel Compact Wheel Hover Unit Aerolev Unit Flight Unit Improved VTOL Module Utility Huge Storage Unit Device Heat Sink Storage Huge Storage Unit Processor Advanced Signal Interpreter Hackware Hacking Suite Protection Light Armor Plating Weapon Ion Cannon Energy Gun Medium Laser Energy Cannon Ion Cannon Ballistic Gun Assault Rifle Launcher Grenade Launcher Special Weapon Plasma Cutter Impact Weapon Mace Slashing Weapon Makeshift Axe Piercing Weapon Heavy Pick Special Melee Weapon Improved Datajack Build | -11 -10 -10 -9 -9 -9 -8 -8 -8 -8 -8 -6 ------- Run | Yrd Mat Min Mat Min Exi Min Mat Sto Rec Scr Fac Slots Evolved 8 | . . . 2 . . . 2 . . . 4 Power . | . . . . . . . . . . . . Propulsion 3 | . . . 1 . . . . . . . 2 Utility 5 | . . . 1 . . . 2 . . . 2 Weapon . | . . . . . . . . . . . . Parts Attached 168 | 6 6 5 39 1 1 2 31 4 1 15 57 Power 10 | 1 1 1 3 . . . 1 . . 1 2 Engine 10 | 1 1 1 3 . . . 1 . . 1 2 Core . | . . . . . . . . . . . . Reactor . | . . . . . . . . . . . . Propulsion 54 | 2 1 1 13 . . . 12 4 1 3 17 Treads 35 | 2 1 1 12 . . . 12 3 1 . 3 Leg . | . . . . . . . . . . . . Wheel 9 | . . . . . . . . . . . 9 Hover 1 | . . . . . . . . 1 . . . Flight 9 | . . . 1 . . . . . . 3 5 Utility 61 | 1 2 . 10 1 1 1 15 . . 8 22 Device 23 | . 1 . 5 . . 1 5 . . 2 9 Storage 9 | 1 1 . . 1 1 . 2 . . 1 2 Processor 6 | . . . . . . . 2 . . . 4 Hackware 9 | . . . 1 . . . 2 . . 4 2 Protection 14 | . . . 4 . . . 4 . . 1 5 Artifact . | . . . . . . . . . . . . Weapon 43 | 2 2 3 13 . . 1 3 . . 3 16 Energy Gun 4 | 1 . . . . . . . . . . 3 Energy Cannon 10 | . . . 6 . . . . . . 1 3 Ballistic Gun 14 | 1 1 2 4 . . . . . . . 6 Ballistic Cannon . | . . . . . . . . . . . . Launcher 7 | . 1 1 1 . . . 3 . . . 1 Special Weapon 2 | . . . 1 . . . . . . 1 . Impact Weapon 1 | . . . 1 . . . . . . . . Slashing Weapon 2 | . . . . . . 1 . . . . 1 Piercing Weapon 1 | . . . . . . . . . . . 1 Special Melee Weapon 2 | . . . . . . . . . . 1 1 Unidentified Prototypes 12 | . . . 5 . . . . 1 . 1 5 Parts Lost 24 | . . . 2 1 . . 6 . . . 15 Power 2 | . . . . . . . 1 . . . 1 Propulsion 10 | . . . 2 . . . 1 . . . 7 Utility 9 | . . . . 1 . . 4 . . . 4 Weapon 3 | . . . . . . . . . . . 3 Highest Loss Streak 5 | . . . 2 1 . . 2 . . . 5 To Critical Strikes . | . . . . . . . . . . . . Average Backups 17 | 2 12 15 14 14 15 18 23 24 25 24 10 Power 1 | . 1 1 . 1 1 1 1 1 1 1 . Propulsion 4 | 1 3 4 1 2 2 2 4 8 8 7 . Utility 7 | . 4 5 6 6 6 7 9 10 11 10 6 Weapon 3 | . 3 4 4 4 5 5 5 3 3 2 2 Tool/Special . | . . . . . . . . . . . . Unused Backups 51 | . 3 . 12 . . . . . . 9 27 Power 3 | . . . 2 . . . . . . 1 . Propulsion 11 | . 1 . 2 . . . . . . 3 5 Utility 29 | . 2 . 5 . . . . . . 5 17 Weapon 7 | . . . 3 . . . . . . . 4 Tool/Special 1 | . . . . . . . . . . . 1 Average Slot Usage (%) 96 | . 97 100 99 99 95 96 95 99 99 95 92 Engine 9 | . 14 14 11 11 11 11 9 9 9 8 5 Treads 24 | . 28 28 32 33 33 33 27 26 27 26 2 Flight 4 | . . . . . . . . . . . 25 Device 12 | . 10 14 13 11 11 18 14 9 9 14 8 Storage 12 | . 15 14 11 15 17 11 9 18 18 17 5 Processor 1 | . . . . . . . 1 . . . 7 Hackware 5 | . . . . . . . 8 9 9 9 10 Protection 5 | . . . 8 6 . . 7 9 9 1 7 Energy Gun 1 | . 14 6 . . . . . . . . . Energy Cannon 9 | . . . 11 16 11 17 14 13 17 7 . Ballistic Gun 2 | . 8 6 5 . . . . . . . . Launcher 2 | . 5 14 . 5 11 4 1 . . . . Slashing Weapon 1 | . . . . . . . 2 4 . 7 . Peak Build Rating 68 | 6 10 10 21 20 19 21 32 35 33 39 68 Average Rating 29 | 5 9 10 16 19 18 20 27 32 31 33 57 On Entrance 19 | . 6 10 10 20 19 18 21 32 33 26 39 Naked Turns . | . . . . . . . . . . . . Heaviest Build 122 | 12 32 31 45 45 77 63 112 110 110 106 122 Greatest Support 65 | 40 40 40 63 63 63 63 65 62 62 62 48 Greatest Overweight (x) 7 | 2 . . . . 1 . 1 2 1 1 7 Average Overweight (x) . | . . . . . . . . 1 1 . . Largest Inventory Capacity 25 | 8 15 15 15 15 20 20 25 25 25 25 25 Average Capacity 18 | 7 13 15 15 15 17 20 24 25 25 24 12 Most Carried 25 | 5 15 15 15 15 16 19 25 25 25 25 25 Average Carried 17 | 2 12 14 14 14 15 18 23 24 25 24 11 Final Capacity 25 | 8 15 15 15 15 20 20 25 25 25 5 25 Final Carried 25 | 5 15 15 14 15 15 19 25 25 25 5 25 Class Distribution -------------------- 57% | Mutant 28% | Scavenger-Mutant 9% | Hacker-Sprinter 3% | Sprinter Dominant Class ---------------- Mutant | -10/Materials Mutant | -10/Mines Mutant | -9/Materials Mutant | -9/Mines Mutant | -9/Exiles Mutant | -8/Mines Mutant | -8/Materials Scavenger-Mutant | -8/Storage Scavenger-Mutant | -8/Recycling Mutant | -8/Scraptown Hacker-Sprinter | -6/Factory Resources | -11 -10 -10 -9 -9 -9 -8 -8 -8 -8 -8 -6 ----------- Run | Yrd Mat Min Mat Min Exi Min Mat Sto Rec Scr Fac Matter Collected 4538 | 248 405 139 1251 35 . 123 570 90 86 134 1457 Remotely . | . . . . . . . . . . . . Salvage Created 7211 | 10 855 74 1351 72 . 132 1425 278 436 . 2578 Parts 421 | 2 52 10 95 . . 26 73 17 22 . 124 Haulers Intercepted 15 | . 1 . 6 . . . 3 1 . . 4 Recyclers Shooed 4 | . . . . . . . 3 . . . 1 Parts Field Recycled . | . . . . . . . . . . . . Retrieved Matter . | . . . . . . . . . . . . Parts Self-Destructed . | . . . . . . . . . . . . Prevented . | . . . . . . . . . . . . Kills | -11 -10 -10 -9 -9 -9 -8 -8 -8 -8 -8 -6 ------- Run | Yrd Mat Min Mat Min Exi Min Mat Sto Rec Scr Fac Combat Hostiles Destroyed 154 | . 18 8 30 10 . 15 30 4 7 . 32 Melee 20 | . . . . . . . 5 1 . . 14 Guns 31 | . 15 1 9 . . . . . . . 6 Cannons 45 | . . . 10 7 . 2 14 3 7 . 2 AOE 55 | . 3 7 11 3 . 13 10 . . . 8 Classes Destroyed 18 | 1 7 . 2 1 . 1 1 . 2 . 3 Worker 9 | . 2 . . . . 2 1 . . . 4 Builder 6 | . . . . . . 2 1 . 1 . 2 Tunneler 3 | 1 . . . . . 1 . . . . 1 Hauler 15 | . 1 . 6 . . . 3 1 . . 4 Recycler 11 | . 2 . 1 . . . 3 . 1 . 4 Mechanic 1 | . . . . . . . . . . . 1 Operator 6 | . 1 . 2 . . . . . . . 3 Watcher 9 | . 1 . 1 . . . 1 . . . 6 Swarmer 50 | . 3 5 12 . . 15 8 . . . 7 Cutter 1 | . . . . . . . . . . . 1 Saboteur 1 | . . . . . . . . . . . 1 Grunt 47 | . 15 3 7 . . . 14 1 . . 7 Brawler 3 | . . . . . . . 1 . . . 2 Duelist 2 | . . . 1 . . . . . . . 1 Sentry 25 | . . . 10 . . . 7 3 4 . 1 Hunter 4 | . . . . . . . . . 2 . 2 Programmer 11 | . . . . . . . . . 1 . 10 Assembled 10 | . . . . 10 . . . . . . . Best Kill Streak 8 | 1 3 5 8 5 . 7 5 1 2 . 4 Combat Bots Only 8 | . 3 5 8 5 . 4 4 1 2 . 4 Max Kills in Single Turn 7 | 1 2 3 6 2 . 7 4 1 1 . 4 Gunslinging . | . . . . . . . . . . . . Exploded 6 | . 1 3 6 2 . 4 3 . . . 3 Melee 1 | . . . . . . . 1 1 . . 1 Uniques/NPCs Destroyed . | . . . . . . . . . . . . Combat | -11 -10 -10 -9 -9 -9 -8 -8 -8 -8 -8 -6 -------- Run | Yrd Mat Min Mat Min Exi Min Mat Sto Rec Scr Fac Hostile Shots Fired 647 | . 69 21 114 8 . 19 104 12 39 1 260 Missed 202 | . 29 4 30 1 . 6 25 1 11 1 94 Hits 445 | . 40 17 84 7 . 13 79 11 28 . 166 Melee 10 | . . . 3 2 . . 1 . . . 4 Projectile 435 | . 40 17 81 5 . 13 78 11 28 . 162 Critical Strikes 17 | . 1 . 6 . . . 4 . . . 6 Part Disruptions 1 | . . . . . . . . . . . 1 Actively Blocked 1 | . . . . . . . . . . . 1 Damage Taken 7512 | . 542 188 1226 160 . 239 1131 168 397 . 3461 Core 1143 | . 146 29 72 31 . 9 149 . 28 . 679 Absorbed by Shields . | . . . . . . . . . . . . Redirected to Shielding 114 | . . . . . . . . . . . 114 Regen/Repaired (Parts) 99 | . . . . . . . . . . . 99 Core Remaining (%) 67 | 100 . 30 . . . 72 . . . 67 . Volleys Fired 339 | 7 68 11 86 15 . 9 61 11 20 . 51 Largest 2 | 2 2 2 2 2 . 2 2 2 2 . 2 Hottest 136 | 70 80 70 136 120 . 120 120 120 120 . 133 Shots Fired 604 | 14 126 19 149 21 . 13 114 21 41 . 86 Gun 264 | 14 112 4 82 . . . . . . . 52 Cannon 266 | . . . 41 19 . 8 106 21 41 . 30 Launcher 57 | . 14 15 9 2 . 5 8 . . . 4 Special 17 | . . . 17 . . . . . . . . Kinetic 186 | 7 54 3 82 . . . . . . . 40 Thermal 349 | 7 58 1 58 19 . 8 106 21 41 . 30 Explosive 57 | . 14 15 9 2 . 5 8 . . . 4 Electromagnetic 12 | . . . . . . . . . . . 12 Robot Hit Streak 21 | 4 12 7 16 4 . 7 16 21 9 . 14 Robot Miss Streak 6 | 2 3 1 3 6 . . 2 2 2 . 3 Penetration Max 1 | . . . . . . . . . . . 1 Secondary Targets 3 | . 1 . 1 . . . . . . . 1 Max Gunslinging Chain 1 | . 1 . 1 . . . . . . . 1 Shots Hit Robots 456 | 10 80 3 100 9 . 5 85 14 28 1 121 Core Hits 271 | 2 43 14 54 14 . 16 48 6 8 . 66 Critical Kills 5 | . . . 1 . . . . . . . 4 Critical Parts Destroyed 3 | . . . . . . . . . . . 3 Critical Strikes 22 | 1 3 . 2 . . . 2 . . . 14 Burn 4 | 1 3 . . . . . . . . . . Meltdown 2 | . . . . . . . . . . . 2 Destroy 6 | . . . 1 . . . . . . . 5 Sever 3 | . . . 1 . . . 2 . . . . Impale 7 | . . . . . . . . . . . 7 Melee Attacks 267 | . . . 13 . . . 26 4 . 2 222 Impact 14 | . . . 13 . . . 1 . . . . Slashing 45 | . . . . . . . 25 4 . 1 15 Piercing 204 | . . . . . . . . . . . 204 Sneak Attacks 29 | . . . . . . . 3 1 . 1 24 Combat Hostiles 4 | . . . . . . . . . . . 4 Follow-up Attacks . | . . . . . . . . . . . . Damage Inflicted 16039 | 138 1386 675 2254 419 . 994 3393 404 769 . 5607 Guns 2607 | 138 949 40 897 . . . . . . . 583 Cannons 3770 | . . . 463 209 . 116 1531 251 726 . 474 Explosions 4853 | . 437 635 762 208 . 875 1110 . . . 826 Melee 4627 | . . . . . . . 750 153 . . 3724 Ramming 60 | . . . 10 2 . 3 2 . 43 . . Kinetic 1926 | 76 465 27 897 . . . . . . . 461 Thermal 4751 | 62 484 13 585 209 . 213 1604 251 726 . 604 Explosive 4553 | . 437 635 762 208 . 778 1037 . . . 696 Electromagnetic 122 | . . . . . . . . . . . 122 Impact 50 | . . . . . . . 50 . . . . Slashing 1030 | . . . . . . . 700 153 . . 177 Piercing 3547 | . . . . . . . . . . . 3547 Highest Corruption 5 | . . . . . . . 1 1 4 4 5 Average Corruption 2 | . . . . . . . 1 1 3 4 2 Corruption Purged . | . . . . . . . . . . . . Corruption Blocked . | . . . . . . . . . . . . Effects 101 | . . . . . . . . 1 47 . 53 Message Errors 35 | . . . . . . . . 1 16 . 18 Matter Fused 28 | . . . . . . . . . 10 . 18 Heat Flow Errors 9 | . . . . . . . . . 5 . 4 Energy Discharges 10 | . . . . . . . . . 8 . 2 Parts Fused 2 | . . . . . . . . . 1 . 1 Data Loss (minor) 10 | . . . . . . . . . 5 . 5 Data Loss (major) 2 | . . . . . . . . . . . 2 Misfires 1 | . . . . . . . . . 1 . . Alerts 3 | . . . . . . . . . 1 . 2 Weapon Failures 1 | . . . . . . . . . . . 1 Overload Shots . | . . . . . . . . . . . . Overflow Damage 1081 | . . 5 41 . . 83 163 . 34 . 755 Projectiles 82 | . . . 16 . . 8 24 . 30 . 4 Explosions 242 | . . 5 25 . . 75 93 . . . 44 Melee 757 | . . . . . . . 46 . 4 . 707 Knockbacks 1 | . . . . . . . . . 1 . . Impact 1 | . . . . . . . . . 1 . . Kinetic . | . . . . . . . . . . . . Secondary . | . . . . . . . . . . . . Self-Inflicted Damage 531 | . 30 6 119 33 . 131 48 . . . 164 Shots 21 | . 1 1 6 1 . 3 4 . . . 5 Rammed 5 | . . . 2 1 . . . . 2 . . Targets Rammed 8 | . . . 2 1 . 1 1 . 3 . . Kicked . | . . . . . . . . . . . . Crushed 3 | . . . . . . 1 1 . 1 . . Highest Temperature 276 | 54 81 . 197 33 . . 249 63 193 . 276 Average Temperature 28 | 25 29 . 16 20 . . 58 26 56 . 19 Received Heat Transfer 2096 | . 261 72 399 40 . . 495 54 63 . 712 Siege Activations . | . . . . . . . . . . . . Martial Activations . | . . . . . . . . . . . . Shielding Activations . | . . . . . . . . . . . . Robots Disrupted . | . . . . . . . . . . . . Combat Hostiles . | . . . . . . . . . . . . Robots Corrupted . | . . . . . . . . . . . . Combat Hostiles . | . . . . . . . . . . . . Parts Fried 4 | . . . . . . . . . 2 . 2 Impact Corruptions 1 | . . . . . . . . . 1 . . Robots Melted 3 | . . . . . . . 1 . . . 2 Combat Hostiles 3 | . . . . . . . 1 . . . 2 Parts Melted 11 | . 2 . 1 . . . 2 1 2 . 3 Heat Transferred 8733 | 259 1665 37 1221 333 . 285 2529 407 1147 . 850 Parts Sabotaged 5 | . . . . . . . . . . . 5 Parts Stolen . | . . . . . . . . . . . . Parts Stripped . | . . . . . . . . . . . . Power Chain Reactions 1 | . . . . . . . . . . . 1 Alert | -11 -10 -10 -9 -9 -9 -8 -8 -8 -8 -8 -6 ------- Run | Yrd Mat Min Mat Min Exi Min Mat Sto Rec Scr Fac Maximum Alert Level 4 | . . 1 1 . . 1 1 . . . 4 Low Security (%) 71 | 100 100 96 61 100 . 79 44 100 100 . 39 Level 1 19 | . . 3 38 . . 20 55 . . . 18 Level 2 1 | . . . . . . . . . . . 6 Level 3 4 | . . . . . . . . . . . 22 Level 4 3 | . . . . . . . . . . . 14 Level 5 . | . . . . . . . . . . . . High Security . | . . . . . . . . . . . . Max Security . | . . . . . . . . . . . . Peak Influence 1322 | 5 130 212 347 126 . 256 379 113 74 . 1322 Initial 126 | . . 43 47 126 . . 47 113 4 . . Average 178 | . 70 76 142 10 . 122 187 60 15 . 479 Influence Increases 6406 | 5 686 328 964 12 . 452 1021 144 313 . 2481 Destroy 0b10 Robot/C 2920 | . 360 200 600 . . 300 600 80 140 . 640 Destroy 0b10 Robot/NC 295 | 5 35 . 45 . . 25 45 5 10 . 125 Destroy Leader 718 | . 84 40 174 . . 40 148 42 . . 190 Allied During Kill 7 | . . 7 . . . . . . . . . Trap Triggered on 0b10 60 | . . . . . . . . . . . 60 Successful Hack 145 | . 15 . 40 . . . 48 . 12 . 30 Select Force Hacks 260 | . 60 . . . . . . . 150 . 50 Disable Machine 375 | . 30 . 15 . . 30 60 15 . . 225 Destroy Structure 546 | . 57 66 60 12 . 57 75 2 1 . 216 Partial Spotted 315 | . . . . . . . . . . . 315 Lose Combat Pursuer 765 | . 45 15 30 . . . 45 . . . 630 Influence Decreases 5086 | 5 573 319 761 337 . 329 876 401 306 18 1161 Entered New Map 600 | . . 70 75 199 . . 76 155 7 18 . Time Decay 3772 | 5 573 249 666 134 . 329 580 246 299 . 691 Search Patrol Dispatched 150 | . . . . . . . . . . . 150 Lost Part 224 | . . . 20 4 . . 60 . . . 140 Lost Ally 40 | . . . . . . . 10 . . . 30 Purge Threat 300 | . . . . . . . 150 . . . 150 Squads Dispatched 44 | . 3 . 4 . . . 4 . . . 33 Investigation 25 | . 2 . 4 . . . 3 . . . 16 Extermination 9 | . . . . . . . . . . . 9 Reinforcement 6 | . 1 . . . . . 1 . . . 4 Assault 4 | . . . . . . . . . . . 4 Garrison . | . . . . . . . . . . . . Intercept . | . . . . . . . . . . . . Searches Triggered 1 | . . . . . . . . . . . 1 Construction Impeded . | . . . . . . . . . . . . Haulers Reinforced 1 | . . . . . . . . . . . 1 Active Scanning Responses . | . . . . . . . . . . . . Cargo Convoy Interrupts . | . . . . . . . . . . . . Stealth | -11 -10 -10 -9 -9 -9 -8 -8 -8 -8 -8 -6 --------- Run | Yrd Mat Min Mat Min Exi Min Mat Sto Rec Scr Fac Distress Signals 11 | . 1 . 4 . . . 1 1 . . 4 Communications Jammed 4 | . . . . . . . . . . . 4 Distress Signals 4 | . . . . . . . . . . . 4 Times Spotted 288 | . 30 11 52 10 . 15 37 5 6 13 109 Peak Tracking Total 11 | . 4 5 8 4 . 4 5 2 2 10 11 Tactical Retreats 29 | . 1 1 2 . . . 3 . . . 22 Traps | -11 -10 -10 -9 -9 -9 -8 -8 -8 -8 -8 -6 ------- Run | Yrd Mat Min Mat Min Exi Min Mat Sto Rec Scr Fac Traps Triggered 6 | . . . . . . . 1 . . . 5 Indirectly . | . . . . . . . . . . . . Trap Hack Attempts 63 | . . . . . . . . . . . 63 Triggered . | . . . . . . . . . . . . Disarmed 1 | . . . . . . . . . . . 1 Reprogrammed 7 | . . . 2 . . . . . . . 5 Reused 6 | . . . . . . . . . . . 6 Traps Extracted 6 | . . . 2 . . . . . . . 4 Installed 5 | . . . . . . . . . . . 5 Triggered 6 | . . . . . . . . . . . 6 Most Traps Carried 4 | . . . 2 2 2 2 2 2 2 2 4 Machines | -11 -10 -10 -9 -9 -9 -8 -8 -8 -8 -8 -6 ---------- Run | Yrd Mat Min Mat Min Exi Min Mat Sto Rec Scr Fac Machines Disabled 25 | . 2 . 1 . . 2 4 1 . . 15 Max in Single Turn 5 | . 1 . 1 . . 2 1 1 . . 5 Garrison Access 4 | . . . . . . . . 1 . . 3 Machines Repaired . | . . . . . . . . . . . . Machines Dismantled . | . . . . . . . . . . . . Machines Sabotaged . | . . . . . . . . . . . . Overloaded Fab Kills 1 | . . . . . . . . . . . 1 Hacking | -11 -10 -10 -9 -9 -9 -8 -8 -8 -8 -8 -6 --------- Run | Yrd Mat Min Mat Min Exi Min Mat Sto Rec Scr Fac Machines Accessed 88 | . 9 . 17 . 1 . 7 1 11 6 36 Terminals 46 | . 7 . 12 . . . 5 . 6 . 16 Fabricators 6 | . . . . . . . . . . . 6 Repair Stations 4 | . . . 1 . . . . . . . 3 Recycling Units 16 | . 2 . 2 . . . 1 . 5 . 6 Scanalyzers 5 | . . . 2 . . . 1 . . . 2 Garrison Access 4 | . . . . . . . . 1 . . 3 Total Hacks 290 | . 14 . 43 . 1 . 27 2 35 56 112 Successful 196 | . 7 . 26 . 1 . 14 1 23 56 68 Failed 94 | . 7 . 17 . . . 13 1 12 . 44 Catastrophic 12 | . 2 . 2 . . . 2 . 2 . 4 Database Lockouts . | . . . . . . . . . . . . Manual 101 | . 9 . 21 . . . 15 1 19 . 36 Terminals 138 | . 11 . 30 . . . 21 . 20 . 56 Fabricators 19 | . . . . . . . . . . . 19 Repair Stations 8 | . . . 2 . . . . . . . 6 Recycling Units 43 | . 3 . 4 . . . 2 . 15 . 19 Scanalyzers 17 | . . . 7 . . . 4 . . . 6 Garrison Access 8 | . . . . . . . . 2 . . 6 Terminal Hacks 97 | . 3 . 8 . 1 . 6 . 3 56 20 Record 57 | . . . . . 1 . . . . 56 . Part Schematic 5 | . . . . . . . . . 3 . 2 Robot Analysis 2 | . . . 1 . . . . . . . 1 Prototype ID Bank 1 | . . . . . . . . . . . 1 Open Door 1 | . . . . . . . . . . . 1 Branch Access Points 3 | . . . 1 . . . 1 . . . 1 Terminal Index 2 | . . . 1 . . . . . . . 1 Unreport Threat 2 | . . . . . . . 1 . . . 1 Locate Traps 10 | . 1 . 2 . . . 3 . . . 4 Reprogram Traps 1 | . . . 1 . . . . . . . . Patrol Status 1 | . . . . . . . . . . . 1 Recall Investigation 3 | . 1 . . . . . . . . . 2 Recall Extermination 1 | . . . . . . . . . . . 1 Hauler Manifests 6 | . 1 . 1 . . . 1 . . . 3 Zone Layout 2 | . . . 1 . . . . . . . 1 Fabricator Hacks 11 | . . . . . . . . . . . 11 Network Status 3 | . . . . . . . . . . . 3 Load Schematic 4 | . . . . . . . . . . . 4 Build 4 | . . . . . . . . . . . 4 Repair Station Hacks 5 | . . . 2 . . . . . . . 3 Scan Component 3 | . . . 1 . . . . . . . 2 Repair 2 | . . . 1 . . . . . . . 1 Recycling Unit Hacks 20 | . . . 3 . . . 2 . 7 . 8 Report Inventory 14 | . . . 3 . . . 1 . 5 . 5 Retrieve Components 6 | . . . . . . . 1 . 2 . 3 Scanalyzer 14 | . . . 6 . . . 3 . . . 5 Insert Component 6 | . . . 3 . . . 1 . . . 2 Analyze 8 | . . . 3 . . . 2 . . . 3 Garrison Access Hacks 4 | . . . . . . . . 1 . . 3 Seal Access 4 | . . . . . . . . 1 . . 3 Unauthorized Hacks 45 | . 4 . 7 . . . 3 . 13 . 18 Terminals 25 | . 2 . 7 . . . 3 . 8 . 5 Assimilate 4 | . . . 1 . . . 1 . . . 2 Botnet 11 | . 1 . 5 . . . 1 . 3 . 1 Operators 5 | . 1 . 1 . . . 1 . . . 2 Skim 5 | . . . . . . . . . 5 . . Fabricators 5 | . . . . . . . . . . . 5 Prioritize 2 | . . . . . . . . . . . 2 Haulers 1 | . . . . . . . . . . . 1 Overload 1 | . . . . . . . . . . . 1 Recompile 1 | . . . . . . . . . . . 1 Repair Stations 2 | . . . . . . . . . . . 2 Patch 2 | . . . . . . . . . . . 2 Recycling Units 13 | . 2 . . . . . . . 5 . 6 Reject 1 | . . . . . . . . . . . 1 Mask 1 | . . . . . . . . . . . 1 Tunnel 7 | . 2 . . . . . . . 5 . . Fedlink 4 | . . . . . . . . . . . 4 Scanalyzers . | . . . . . . . . . . . . Garrison Access . | . . . . . . . . . . . . Data Cores Recovered 2 | . . . 1 . . . . . . . 1 Used 1 | . . . . . . . . . . . 1 Hacking Detections 61 | . 5 . 14 . . . 7 . 8 . 27 Full Trace Events 16 | . . . 4 . . . 2 . 3 . 7 Feedback Events 4 | . . . . . . . 2 . 1 . 1 Corruption 2 | . . . . . . . 1 . 1 . . Hackware Fried 2 | . . . . . . . 1 . . . 1 Feedback Blocked . | . . . . . . . . . . . . Robot Schematics Acquired . | . . . . . . . . . . . . Robots Built 1 | . . . . . . . . . . . 1 Authchips . | . . . . . . . . . . . . Time 58 | . . . . . . . . . . . 58 Total Robot Build Rating 3 | . . . . . . . . . . . 3 Part Schematics Acquired 11 | . . . 3 . . . 1 . 3 . 4 Parts Built 5 | . . . . . . . . . . . 5 Authchips 1 | . . . . . . . . . . . 1 Time 294 | . . . . . . . . . . . 294 Total Part Build Rating 25 | . . . . . . . . . . . 25 Parts Repaired 2 | . . . 1 . . . . . . . 1 Time 88 | . . . 44 . . . . . . . 44 Parts Recycled . | . . . . . . . . . . . . Recycled Matter . | . . . . . . . . . . . . Retrieved Matter . | . . . . . . . . . . . . Retrieved Components 31 | . . . . . . . 7 . 9 . 15 Parts Scanalyzed 6 | . . . 3 . . . 1 . . . 2 Part Schematics Acquired 6 | . . . 3 . . . 1 . . . 2 Parts Damaged 1 | . . . 1 . . . . . . . . Bothacking | -11 -10 -10 -9 -9 -9 -8 -8 -8 -8 -8 -6 ------------ Run | Yrd Mat Min Mat Min Exi Min Mat Sto Rec Scr Fac Used RIF Installer . | . . . . . . . . . . . . Robots Hacked 2 | . . . . . . . . . . 1 1 Non-combat 1 | . . . . . . . . . . . 1 Combat 1 | . . . . . . . . . . 1 . Robot Hacks Applied 2 | . . . . . . . . . . 1 1 parse_system 1 | . . . . . . . . . . 1 . find_station 1 | . . . . . . . . . . . 1 Relay Couplers Released 2 | . . . . . . . . . . . 2 Machine Destruction 2 | . . . . . . . . . . . 2 Fabnet Peak Effective % . | . . . . . . . . . . . . Robots Rewired . | . . . . . . . . . . . . Allies Hacked . | . . . . . . . . . . . . Hacks Repelled 1 | . . . . . . . . . . . 1 Allies | -11 -10 -10 -9 -9 -9 -8 -8 -8 -8 -8 -6 -------- Run | Yrd Mat Min Mat Min Exi Min Mat Sto Rec Scr Fac Total Allies 6 | . . 1 1 . . . 1 . . . 3 Largest Group 2 | . . 1 1 . . . 1 . . . 2 Highest-Rated Group 52 | . . 31 10 . . . 10 . . . 52 Highest-Rated Ally 31 | . . 31 10 . . . 10 . . . 26 Total Orders 1 | . . . 1 . . . . . . . . STAY 1 | . . . 1 . . . . . . . . Ally Attacks 8 | . . 8 . . . . . . . . . Total Damage 108 | . . 108 . . . . . . . . . Kills 2 | . . 2 . . . . . . . . . Allies Corrupted . | . . . . . . . . . . . . Allies Melted 1 | . . . . . . . . . . 1 . Intel | -11 -10 -10 -9 -9 -9 -8 -8 -8 -8 -8 -6 ------- Run | Yrd Mat Min Mat Min Exi Min Mat Sto Rec Scr Fac Active Infowar (turns) 4929 | . . . 382 . . 649 992 . . . 2906 Sensors 4924 | . . . 382 . . 649 989 . . . 2904 IFF 10 | . . . . . . . . . . . 10 Structural 442 | . . . . . . . 442 . . . . Seismic 486 | . . . . . . . 486 . . . . T.N.C. 2 | . . . . . . . 2 . . . . Jamming 76 | . . . . . . . . . . . 76 Robot Analysis Total 2 | . . . 1 . . . . . . . 1 Derelict Logs Recovered 2 | . . 1 . 1 . . . . . . . Drone Launches . | . . . . . . . . . . . . Drone Recoveries . | . . . . . . . . . . . . Exploration | -11 -10 -10 -9 -9 -9 -8 -8 -8 -8 -8 -6 ------------- Run | Yrd Mat Min Mat Min Exi Min Mat Sto Rec Scr Fac Turns Passed 22152 | 140 1936 1130 3228 1667 286 936 2613 528 2296 3379 4013 Spaces Moved 16870 | 73 1025 644 1638 700 175 551 940 187 943 1576 8418 Core 12 | 12 . . . . . . . . . . . Treads 8256 | 61 1025 644 1638 700 175 551 940 187 943 1392 . Legs . | . . . . . . . . . . . . Wheels 442 | . . . . . . . . . . . 442 Hover . | . . . . . . . . . . . . Flight 8160 | . . . . . . . . . . 184 7976 Fastest Speed 23 | 50 160 160 160 160 160 160 155 235 235 29 23 Average Speed 108 | 146 160 160 160 160 162 160 222 235 235 210 29 Slowest Speed 312 | 160 160 160 160 160 240 160 240 312 235 235 205 Overloaded Moves . | . . . . . . . . . . . . Propulsion Burnouts . | . . . . . . . . . . . . Robots Hopped 58 | . . . . . . . . . . 2 56 Potential Cave-ins 3 | . . 3 . . . . . . . . . Cave-ins Triggered . | . . . . . . . . . . . . Exploration Rate (%) 75 | 6 98 102 99 100 55 99 45 30 99 90 81 Regions Visited 11 Branch Regions 7 Pre-discovered Areas 14 | . 2 . . . 1 . . . 5 5 1 Known Exits Taken 3 | . . 1 1 . . . 1 . . . . Unknown Exits Taken 8 | 1 1 . . 1 1 1 . 1 1 1 . Scrap Searched 15 | . . 1 . 2 . 1 . . . 11 . Spaces Dug 192 | . . . 14 . . 21 42 . . 1 114 Terrain Destroyed 623 | . 78 101 63 19 . 63 73 2 1 1 222 Melee 122 | . . . 7 . . . 7 . . 1 107 Projectile 34 | . . . 2 5 . . 9 2 1 . 15 AOE 467 | . 78 101 54 14 . 63 57 . . . 100 Terrain Rammed . | . . . . . . . . . . . . Walls Destroyed . | . . . . . . . . . . . . Machines Disabled . | . . . . . . . . . . . . Actions | -11 -10 -10 -9 -9 -9 -8 -8 -8 -8 -8 -6 --------- Run | Yrd Mat Min Mat Min Exi Min Mat Sto Rec Scr Fac Total 19653 | 90 1206 725 2070 1225 178 588 1326 253 981 1631 9380 Wait 1511 | . 74 61 199 507 . 15 209 29 11 . 406 Move 16749 | 72 1024 643 1637 699 174 550 939 186 942 1572 8311 Hop 52 | . . . . . . . . . . 1 51 Pick Up 162 | 5 19 1 27 1 . 5 16 5 . 10 73 Fast Attach 76 | 6 3 . 10 1 . . 7 2 . 13 34 Attach 43 | . 1 . 7 . . 1 11 1 . 4 18 Detach 21 | . 1 . 3 . 1 . 6 . 1 1 8 Swap 136 | . 3 6 37 1 1 7 30 6 2 5 38 Drop 184 | . 13 3 48 . 2 . 20 9 2 23 64 Fire 339 | 7 68 11 86 15 . 9 61 11 20 . 51 Melee 267 | . . . 13 . . . 26 4 . 2 222 Ram . | . . . . . . . . . . . . Kick . | . . . . . . . . . . . . Crush 8 | . . . 2 1 . 1 1 . 3 . . Escape Stasis 36 | . . . . . . . . . . . 36 Rewire . | . . . . . . . . . . . . Trap 68 | . . . . . . . . . . . 68 Miscellaneous 1 | . . . 1 . . . . . . . . Route ------- -11/Scrapyard -10/Materials (discovered 5 exits: *Mat x3 / [*Min] / [*Sub]) -10/Mines (discovered 3 exits: *Mat x2 / [*Sub]) -9/Materials (discovered 4 exits: *Mat x3 / *Min) -9/Mines (discovered 4 exits: *Mat x2 / *Exi / [*Zio]) -9/Exiles -8/Mines (discovered 2 exits: *Mat x2) -8/Materials (discovered 3 exits: [*Fac] / *Sto x2) -8/Storage -8/Recycling (discovered 2 exits: *Fac / *Scr) -8/Scraptown (discovered 2 exits: *Fac x2) -6/Factory (discovered 8 exits: *Fac x4 / *Low x2 / *Ext x2) History --------- Turn | Location | Event 47 | -11/Scrapyard | Discovered new exit (range 15) 141 | -11/Scrapyard | Entered Materials 313 | -10/Materials | Build established: Mutant 706 | -10/Materials | Discovered new exit (range 8) 909 | -10/Materials | Discovered new exit (range 6) 1005 | -10/Materials | Discovered new exit (range 12) 1202 | -10/Materials | Discovered new exit (range 8) 1949 | -10/Materials | Discovered new exit (range 10) 2007 | -10/Materials | Core integrity fell below 50% 2077 | -10/Materials | Entered Mines 2129 | -10/Mines | Identified exit to Materials 2540 | -10/Mines | Discovered new exit (range 13) 2622 | -10/Mines | Discovered exit to Materials (range 9) 2680 | -10/Mines | Received a Mining Laser from a helpful Derelict 3207 | -10/Mines | Entered Materials 3207 | -9/Materials | Evolved 2 slots: Propulsion x1, Utility x1 3824 | -9/Materials | Build established: Scavenger-Mutant 4292 | -9/Materials | Identified exit to Mines 4572 | -9/Materials | Build established: Mutant 5053 | -9/Materials | Repaired Broken Trap Extractor 5229 | -9/Materials | Destroyed 8 combat bots 5421 | -9/Materials | Discovered new exit (range 3) 5636 | -9/Materials | Discovered new exit (range 3) 5977 | -9/Materials | Discovered new exit (range 16) 6435 | -9/Materials | Entered Mines 6436 | -9/Mines | Met a Derelict bent on vengeance 6524 | -9/Mines | Assembled infested the area 6536 | -9/Mines | Deemed a non-threat by the Exiles lab entrance 6536 | -9/Mines | Discovered new exit (range 5) 7432 | -9/Mines | Learned Materials garrison access intel 7460 | -9/Mines | Discovered new exit (range 11) 7531 | -9/Mines | A Derelict revealed a hidden shortcut to a safe place 7612 | -9/Mines | A weapon hastily lodged in a ceiling crevice suddenly fell to the ground 7848 | -9/Mines | Discovered new exit (range 3) 8102 | -9/Mines | Entered Exiles 8141 | -9/Exiles | Met 8R-AWN 8168 | -9/Exiles | Met EX-HEX 8289 | -9/Exiles | Met EX-DEC 8318 | -9/Exiles | Learned location of Zion (-7) 8371 | -9/Exiles | Discovered new exit (range 14) 8388 | -9/Exiles | Entered Mines 8540 | -8/Mines | Discovered new exit (range 7) 8891 | -8/Mines | Discovered new exit (range 10) 9324 | -8/Mines | Entered Materials 9324 | -8/Materials | Evolved 2 slots: Utility x2 9325 | -8/Materials | Loaded intel: 1 garrison access location 9781 | -8/Materials | Discovered new exit (range 4) 10090 | -8/Materials | Discovered new exit (range 9) 10144 | -8/Materials | Discovered new exit (range 16) 11003 | -8/Materials | Build established: Scavenger-Mutant 11766 | -8/Materials | System Shield fried by hacking feedback 11869 | -8/Materials | Identified exit to Storage 11937 | -8/Materials | Entered Storage 12455 | -8/Storage | Used back door to open Recycling access 12455 | -8/Storage | Discovered new exit (range 5) 12465 | -8/Storage | Entered Recycling 13527 | -8/Recycling | Discovered new exit (range 5) 14705 | -8/Recycling | Scanned before Scraplab entrance 14738 | -8/Recycling | Entered Scraplab 14757 | -8/Recycling | Discovered new exit (range 3) 14761 | -8/Recycling | Entered Scraptown 14766 | -8/Scraptown | System corruption cleaned by C-Scrubber 15340 | -8/Scraptown | Discovered new exit (range 13) 15510 | -8/Scraptown | Visited Cave Peace 15592 | -8/Scraptown | Visited Bundlers 15779 | -8/Scraptown | Visited Junk Repository 16011 | -8/Scraptown | Visited Assassins FH 16107 | -8/Scraptown | Visited Red Mages 16134 | -8/Scraptown | Build established: Mutant 16138 | -8/Scraptown | Visited UFD Registry 16138 | -8/Scraptown | Registered with UFD as "Megamind" 16248 | -8/Scraptown | Visited The Evicted 16288 | -8/Scraptown | Visited Supply Room 16723 | -8/Scraptown | Visited LU-1G1's Boring Crew 16812 | -8/Scraptown | Visited DA-N13 Charitable Foundation 16862 | -8/Scraptown | Found DCF Scrap (28 items) 16922 | -8/Scraptown | Visited Curators Association 17217 | -8/Scraptown | Visited Derelict Rescue Squad 17276 | -8/Scraptown | Visited Research Penetration Think Tank 17325 | -8/Scraptown | Visited Science Testing Area 17459 | -8/Scraptown | Visited Cartography Club 17511 | -8/Scraptown | Visited Abandonware Association 17537 | -8/Scraptown | Learned abandonware demo "REBOOT5.EXE" 17537 | -8/Scraptown | Learned abandonware demo "REVENGE.EXE" 17595 | -8/Scraptown | Visited Chapter 10 17673 | -8/Scraptown | Visited Junk Cannon Lab 17695 | -8/Scraptown | Found Prototype Special Weapon 17695 | -8/Scraptown | Identified Junk Cannon 17936 | -8/Scraptown | Met Optimus 17936 | -8/Scraptown | Accepted into 0bPrime 18095 | -8/Scraptown | Civil war broke out across Scraptown 18126 | -8/Scraptown | Learned location of Warlord (-5) 18126 | -8/Scraptown | Learned location of Cetus (-6) 18126 | -8/Scraptown | Learned location of Testing (-2) 18126 | -8/Scraptown | Learned 24 Factory zone layouts 18126 | -8/Scraptown | Learned 16 Research zone layouts 18126 | -8/Scraptown | Learned 4 Recycling zone layouts 18126 | -8/Scraptown | Learned 12 Lower Caves zone layouts 18126 | -8/Scraptown | Learned 12 Proximity Caves zone layouts 18126 | -8/Scraptown | Learned 24 Proximity Caves zone layouts 18126 | -8/Scraptown | Learned 4 Hub_04(d) zone layouts 18126 | -8/Scraptown | Learned 4 Armory zone layouts 18126 | -8/Scraptown | Learned location of 3 exits from Factory 18126 | -8/Scraptown | Learned location of 1 exit from Upper Caves 18126 | -8/Scraptown | Learned location of 3 exits from Upper Caves 18139 | -8/Scraptown | Discovered new exit (range 3) 18140 | -8/Scraptown | Entered Factory 18140 | -6/Factory | Evolved 4 slots: Propulsion x2, Utility x2 18141 | -6/Factory | Identified exit to Lower Caves 18142 | -6/Factory | Identified exit to Factory 18142 | -6/Factory | Identified exit to Extension 18163 | -6/Factory | Lost 10 allies 18198 | -6/Factory | Loaded intel: 8 recycling unit locations 18396 | -6/Factory | Learned location of Protoforge (-2) 18398 | -6/Factory | Fabricated Adv. Signal Interpreter? 18425 | -6/Factory | Build established: Hacker-Sprinter 19139 | -6/Factory | Fabricated O-24 Administrator (x1) 19186 | -6/Factory | Fabricated Hyp. Gauss Rifle? 19319 | -6/Factory | Mak. Hacking Suite fried by hacking feedback 19367 | -6/Factory | Repaired Lyr. Light Armor Plating? 20179 | -6/Factory | Discovered exit to Factory (range 7) 20289 | -6/Factory | Discovered exit to Factory (range 16) 20488 | -6/Factory | Spotted B-75 Beast 20548 | -6/Factory | Build established: Sprinter 20566 | -6/Factory | Fabricated Cld. Cesium-ion Thruster? 20940 | -6/Factory | Search patrols dispatched 21258 | -6/Factory | Build established: Mutant 21290 | -6/Factory | First assault squad dispatched 21367 | -6/Factory | Core integrity fell below 50% 21403 | -6/Factory | Lost 5 parts (3n1u1w) 21948 | -6/Factory | Build established: Scavenger-Mutant 22153 | -6/Factory | Self-destructed Last Messages --------------- 22122_ U-05 Engineer builds a Wall. 22131_ U-05 Engineer lays Concrete. 22132_ U-05 Engineer builds a Wall. 22136_ U-05 Engineer lays Concrete. 22137_ U-05 Engineer builds a Wall. 22142_ U-05 Engineer lays Concrete. 22143_ C-30 ARC bursts open, deploying its payload. 22143_ G-67 Veteran unfolds itself. 22143_ G-50 Soldier unfolds itself. 22143_ E-15 Imp unfolds itself. 22145_ U-05 Engineer builds a Wall. 22148_ Critical hit (Burn: +50). 22148_ Hvy. Deuterium Engine blown off. 22148_ Imp. Heavy Machine Gun blown off. 22148_ Imp. Light Armor Plating blown off. 22148_ E-15 Imp destroyed. 22149_ Acquired Hvy. Deuterium Engine. 22149_ U-05 Engineer builds a Wall. 22151_ Acquired Imp. Light Armor Plating. 22152_ K-01 Serf collects debris. Map ----- +----------------------------------------------------+ | ??????????????????????#[ + + | | ??????????????????????# # # """" | | ??????????????????????# # # """" | | ??????????????????????# # # ! """" | | ??????????????????????# # # """" | | ??????????????????????#####+##### ######## | | ??????????????????????# # ##?????? | | ??????????????????????# [ + #??????? | | ??????????????????????# "" ! # #??????? | | ??????????????????????#""" # ######## | | ??????????????????????#"F """ # # | | ??????????????????????#""" """ # # | | ??????????????????????# "" """ # # | | ?????????????????????## # # """ "" | | ?????????######################## + """ "" | | ########## # # # """ "" | | # ## %+ """ """ # # | | # ## g gg# """ """ # # | | # ! ## g # """ """ # ######## | | # ## # # #??????? | | # ## # """ # ####???? | | # ## # """ !] + ##"##### | | # ## = # """ ! # # | | # []] ## !%=# ]* # # """"" | | # ]] ## [ # """ # # """"" | | # ] # @ # """ =# # """ | | # ##u # """ # # | | ####+##########+#t##### # # """"" | | ???# = %### ########### + """"" | | ???# ##### "#?############# # """ | | ???# ## #/ #??## ## % # | | ???#[##### [ #???# """ ## ######## | | ####+#####+#; #???# """ # ####### | | # [% ; #???# """ # * | | # * ; %#???# """ + T | | # " #???# "" # | | # k # #???# # ####### | | # # #???# ###+######### | | # + #???# # | | # """" # #???########## | | # """" # ############## | | # """" [ # # # | | # """" " + # # | | # """" T # #?"" =# | | # """" " # #?"T # | | # # +?"" """ # !!! | | ?#######"#### #??" """"" # !!! | | ??# # #?????"""" # !!! | | ??# "" # o########################+# | | ??# "T "" # | +----------------------------------------------------+ Best States ------------- Heat Dissipation 53 Coolant Potential 65 Energy Generation 18 Energy Capacity 310 Matter Stores 450 Matter Capacity 450 Sight Range 16 Robot Scan Range 16 Terrain Scan Density 10 Jamming Range 12 Additional Mass Support 12 Armor Coverage 600 Propulsion Shielding 66 Evasion (%) 65 Targeting Accuracy 8 Melee Accuracy 5 Target Analysis 5 Recoil Reduction 3 Offensive Hacking 23 Defensive Hacking 10 Authchip Count 1 Trap Extractor Capacity 4 Item Schematics ----------------- Trap Extractor | -9/Materials | Scanalyzed ECM Suite | -9/Materials | Scanalyzed Seismic Detector | -9/Materials | Scanalyzed Imp. VTOL Module | -8/Materials | Scanalyzed Imp. Signal Interpreter | -8/Recycling | Hacked Hacking Suite | -8/Recycling | Hacked Cloaking Device | -8/Recycling | Hacked Hyp. Gauss Rifle | -6/Factory | Scanalyzed Cld. Cesium-ion Thruster | -6/Factory | Scanalyzed Plasma Cutter | -6/Factory | Hacked IFF Parser | -6/Factory | Hacked Robot Schematics ------------------ None Fabricated ------------ Adv. Signal Interpreter | x2 | -6/Factory | Preloaded O-24 Administrator | x1 | -6/Factory | Preloaded Hyp. Gauss Rifle | x2 | -6/Factory Cld. Cesium-ion Thruster | x1 | -6/Factory | Authchip Repaired ---------- Trap Extractor | 99% | -9/Materials | Broken Lyr. Light Armor Plating | 74% | -6/Factory Alien Tech Used ----------------- None Achievements -------------- None Challenges ------------ None Game ------ Seed ReactionSwarmTurbovents Manual? 0 Play Time 03:16:42 Cumulative 483.9 hours Start 2025.06.19 @ 15:28:53 End 2025.06.21 @ 10:45:12 Sessions 17 Manual Loads 0 Difficulty Rogue Special Mode None Game No. 392 Rogue 384 Adventurer 0 Explorer 8 Win Type - Total 8 Types 6/0/2/0/0/0/0/0/0/0 Lore% 82 Gallery% 76 Achievement% 71 Wizard Run 0 Options --------- Layout 0 ASCII 0 Keyboard 1 Movement Vi Keybinds 0 Fullscreen 1 Font 18/SmallcapsGlow Map View 76x50 Zoom Use 0% Tactical HUD 1 Map Filters NONE Filters NONE Steam 1 RUN: c11c413e-ad15-436d-8bef-b8cd138a2dc0